fUST/lending_fUST_20250105
["ID","MTS","AMOUNT","RATE_DAILY","PERIOD"]
[347694895,1736073033744,-500.0,0.00019178,2]
[347694896,1736073033755,-2663.08,0.00019178,2]
[347694897,1736073033765,-1630.41,0.00019178,2]
[347694898,1736073033778,-1453.75,0.00019178,2]
[347694899,1736073033790,-500.0,0.00019178,2]
[347694900,1736073033801,-1712.0,0.00019178,2]
[347694901,1736073033812,-575.15,0.00019178,2]
[347694902,1736073033823,-500.0,0.00019178,2]
[347694903,1736073033834,-6959.41,0.00019178,2]
[347694904,1736073033845,-586.18,0.00019196,3]
[347694905,1736073033856,-500.0,0.00019196,3]
[347694906,1736073033867,-677.86,0.00019196,3]
[347694907,1736073033877,-951.35,0.00019196,3]
[347694908,1736073033887,-859.48,0.00019196,3]
[347694909,1736073033897,-572.46,0.00019196,3]
[347694910,1736073033907,-596.42,0.00019196,3]
[347694911,1736073033916,-613.26,0.00019196,3]
[347694912,1736073033926,-522.86,0.00019196,3]
[347694913,1736073033935,-500.0,0.00019196,3]
[347694914,1736073033945,-515.27,0.00019196,3]
[347694915,1736073033955,-500.0,0.00019196,3]
[347694916,1736073033965,-927.98,0.00019196,3]
[347694917,1736073034181,-297.85381967,0.00019196,3]
[347694918,1736073034196,-1709.39,0.00019196,3]
[347694919,1736073034206,-1057.0,0.00019196,3]
[347694920,1736073034216,-617.36,0.00019196,3]
[347694921,1736073034226,-2859.24,0.00019196,3]
[347694922,1736073034237,-500.0,0.00019196,3]
[347694923,1736073034246,-516.4,0.00019196,3]
[347694924,1736073034256,-500.0,0.00019196,3]
[347694925,1736073034265,-500.0,0.00019196,3]
[347694926,1736073034276,-500.0,0.00019196,3]
[347694927,1736073034285,-558.45,0.00019196,3]
[347694928,1736073034294,-1509.17,0.00019196,3]
[347694929,1736073034304,-1973.99,0.00019196,3]
[347694930,1736073034314,-500.0,0.00019196,3]
[347694931,1736073034323,-1877.46,0.00019196,3]
[347694932,1736073034333,-1728.16,0.00019196,3]
[347694933,1736073034343,-201.64482303,0.00019196,3]
[347694934,1736073034352,-500.0,0.00019196,3]
[347694935,1736073034361,-500.0,0.00019196,3]
[347694936,1736073034371,-1925.72,0.00019196,3]
[347694937,1736073034380,-500.0,0.00019196,3]
[347694938,1736073034390,-571.86,0.00019196,3]
[347694939,1736073034399,-500.0,0.00019196,3]
[347694940,1736073034409,-500.0,0.00019196,3]
[347694941,1736073034418,-634.26002248,0.00019196,3]
[347694942,1736073034428,-805.4,0.00019196,3]
[347694943,1736073034437,-500.0,0.00019196,3]
[347694944,1736073034446,-500.0,0.00019196,3]
[347694945,1736073034456,-500.0,0.00019196,3]
[347694946,1736073034465,-1307.68,0.00019196,3]
[347694947,1736073034474,-500.0,0.00019196,3]
[347694948,1736073034484,-150.0,0.00019197,2]
[347694949,1736073034493,-2082.0,0.00019197,2]
[347694950,1736073034502,-535.0,0.00019197,2]
[347694951,1736073034511,-394.0,0.00019197,2]
[347694952,1736073034521,-382.53,0.000192,2]
[347694953,1736073034530,-260.0,0.00019218,2]
[347694954,1736073034539,-633.95596465,0.00019273,2]
[347694955,1736073034549,-500.0,0.00019273,2]
[347694956,1736073034558,-500.0,0.00019273,2]
[347694957,1736073034568,-315.86004848,0.00019298,2]
[347694958,1736073034577,-159.8236228,0.00019299,2]
[347694959,1736073034587,-1709.39,0.00019299,3]
[347694960,1736073034596,-1709.39,0.00019299,3]
[347694961,1736073034605,-1709.39,0.00019299,3]
[347694962,1736073034618,-1709.39,0.00019299,3]
[347694963,1736073034628,-1709.39,0.00019299,3]
[347694964,1736073034637,-1709.39,0.00019299,3]
[347694965,1736073034646,-1709.39,0.00019299,3]
[347694966,1736073034658,-1709.39,0.00019299,3]
[347694967,1736073034667,-1709.39,0.00019299,3]
[347694968,1736073034677,-1709.39,0.00019299,3]
[347694969,1736073034687,-1521.89839224,0.00019299,3]
[347695591,1736073046845,-1427.2,0.00019178,2]
[347695593,1736073046855,-500.0,0.00019178,2]
[347695595,1736073046864,-422.199995,0.00019178,2]
[347702358,1736073677595,349.943413,0.00013973,2]
[347702422,1736074231937,-275.8091475,0.00018107,2]
[347702424,1736074231947,-395.095,0.0001834,2]
[347702426,1736074231956,-300.0,0.00018977,2]
[347702427,1736074231965,-482.6136494,0.00018978,2]
[347702428,1736074231975,-513.22798718,0.00018978,2]
[347702429,1736074231984,-1299.68157424,0.00018978,2]
[347702430,1736074231995,-3978.12934726,0.00018978,2]
[347702431,1736074232005,-1019.77065274,0.00018978,2]
[347702863,1736074238003,-135.48128441,0.00018978,2]
[347702864,1736074238012,-302.96970909,0.00019,2]
[347702865,1736074238022,-260.34292753,0.00019078,2]
[347702867,1736074238031,-300.0,0.000191,8]
[347702868,1736074238042,-151.0,0.00019166,2]
[347702869,1736074238052,-10475.37736239,0.00019173,2]
[347702870,1736074238061,-500.0,0.00019178,2]
[347702871,1736074238070,-500.0,0.00019178,2]
[347702872,1736074238079,-500.0,0.00019178,2]
[347702873,1736074238089,-500.0,0.00019178,2]
[347702874,1736074238098,-500.0,0.00019178,2]
[347702875,1736074238107,-500.0,0.00019178,2]
[347702876,1736074238117,-561.76,0.00019178,2]
[347702877,1736074238126,-514.19243343,0.00019178,2]
[347702878,1736074238135,-500.0,0.00019178,2]
[347702879,1736074238145,-804.98,0.00019178,2]
[347702880,1736074238154,-797.6,0.00019178,2]
[347702881,1736074238163,-500.0,0.00019178,2]
[347702882,1736074238172,-500.0,0.00019178,2]
[347702883,1736074238182,-500.0,0.00019178,2]
[347702884,1736074238193,-500.0,0.00019178,2]
[347702885,1736074238202,-1294.74,0.00019178,2]
[347702886,1736074238211,-500.0,0.00019178,2]
[347702887,1736074238221,-678.69,0.00019178,2]
[347702889,1736074238230,-649.61,0.00019178,2]
[347702891,1736074238239,-500.0,0.00019178,2]
[347702893,1736074238248,-647.05,0.00019178,2]
[347702895,1736074238257,-588.91,0.00019178,2]
[347702897,1736074238267,-925.19,0.00019178,2]
[347702899,1736074238275,-500.0,0.00019178,2]
[347702901,1736074238285,-500.0,0.00019178,2]
[347702904,1736074238301,-500.0,0.00019178,2]
[347702906,1736074238315,-500.0,0.00019178,2]
[347702908,1736074238325,-832.22,0.00019178,2]
[347702909,1736074238334,-548.61,0.00019178,2]
[347702910,1736074238344,-500.0,0.00019178,2]
[347702911,1736074238354,-7768.94,0.00019178,2]
[347702912,1736074238364,-500.0,0.00019178,2]
[347702913,1736074238373,-500.0,0.00019178,2]
[347702914,1736074238383,-1013.11,0.00019178,2]
[347702915,1736074238393,-569.32,0.00019178,2]
[347702916,1736074238402,-413.17402504,0.00019178,2]
[347702917,1736074238412,-500.0,0.00019178,2]
[347702918,1736074238421,-500.0,0.00019178,2]
[347702919,1736074238431,-571.57,0.00019178,2]
[347702920,1736074238440,-500.0,0.00019178,2]
[347702921,1736074238450,-1418.44,0.00019178,2]
[347702922,1736074238459,-488.79181801,0.00019178,2]
[347702923,1736074238469,-515.97,0.00019178,2]
[347702924,1736074238478,-912.51,0.00019178,2]
[347702925,1736074238488,-1030.47,0.00019178,2]
[347702926,1736074238498,-500.0,0.00019178,2]
[347702927,1736074238508,-587.71,0.00019178,2]
[347702928,1736074238518,-782.12,0.00019178,2]
[347702929,1736074238528,-500.0,0.00019178,2]
[347702930,1736074238537,-500.0,0.00019178,2]
[347702931,1736074238548,-500.0,0.00019178,2]
[347702932,1736074238557,-889.02,0.00019178,2]
[347702933,1736074238567,-591.63,0.00019178,2]
[347702934,1736074238576,-500.0,0.00019178,2]
[347702935,1736074238585,-548.75,0.00019178,2]
[347702936,1736074238595,-500.0,0.00019178,2]
[347702937,1736074238604,-889.32,0.00019178,2]
[347702938,1736074238613,-500.0,0.00019178,2]
[347702939,1736074238623,-779.72,0.00019178,2]
[347702940,1736074238632,-820.07,0.00019178,2]
[347702941,1736074238641,-862.51,0.00019178,2]
[347702942,1736074238651,-862.51,0.00019178,2]
[347702943,1736074238660,-862.51,0.00019178,2]
[347702944,1736074238669,-862.51,0.00019178,2]
[347702945,1736074238679,-862.51,0.00019178,2]
[347702946,1736074238688,-500.0,0.00019178,2]
[347702947,1736074238698,-500.0,0.00019178,2]
[347702948,1736074238707,-500.0,0.00019178,2]
[347702949,1736074238717,-500.0,0.00019178,2]
[347702950,1736074238727,-1012.96,0.00019178,2]
[347702951,1736074238736,-585.96,0.00019178,2]
[347702952,1736074238746,-36846.16,0.00019178,2]
[347702953,1736074238755,-2947.76,0.00019178,2]
[347702954,1736074238765,-11064.09,0.00019178,2]
[347702955,1736074238775,-1095.04,0.00019178,2]
[347702956,1736074238784,-4679.58,0.00019178,2]
[347702957,1736074238794,-500.0,0.00019178,2]
[347702958,1736074238804,-500.0,0.00019178,2]
[347702959,1736074238814,-1575.06,0.00019178,2]
[347702960,1736074238823,-682.84,0.00019178,2]
[347702961,1736074238833,-2079.24,0.00019178,2]
[347702962,1736074238842,-501.86787253,0.00019178,2]
[347702963,1736074238851,-1903.39,0.00019178,2]
[347702964,1736074238861,-500.0,0.00019178,2]
[347702965,1736074238871,-1760.32,0.00019178,2]
[347702966,1736074238880,-500.0,0.00019178,2]
[347702967,1736074238890,-500.0,0.00019178,2]
[347702968,1736074238899,-500.0,0.00019178,2]
[347702969,1736074238908,-548.03,0.00019178,2]
[347702970,1736074238918,-515.63,0.00019178,2]
[347702971,1736074238927,-500.0,0.00019178,2]
[347702972,1736074238937,-1891.92,0.00019178,2]
[347702973,1736074238946,-500.0,0.00019178,2]
[347702974,1736074238956,-500.0,0.00019178,2]
[347702975,1736074238965,-2635.45,0.00019178,2]
[347702976,1736074238974,-3129.39,0.00019178,2]
[347702977,1736074238984,-1671.49,0.00019178,2]
[347702978,1736074238994,-500.0,0.00019178,2]
[347702979,1736074239003,-500.0,0.00019178,2]
[347702980,1736074239013,-500.0,0.00019178,2]
[347702981,1736074239022,-500.0,0.00019178,2]
[347702982,1736074239031,-500.0,0.00019178,2]
[347702983,1736074239041,-500.0,0.00019178,2]
[347702984,1736074239051,-1393.18,0.00019178,2]
[347702985,1736074239060,-1587.09,0.00019178,2]
[347702986,1736074239069,-1266.7,0.00019178,2]
[347702987,1736074239080,-1413.94,0.00019178,2]
[347702988,1736074239090,-500.0,0.00019178,2]
[347702989,1736074239099,-551.18,0.00019178,2]
[347702990,1736074239109,-500.0,0.00019178,2]
[347702991,1736074239118,-500.0,0.00019178,2]
[347702992,1736074239127,-1265.95,0.00019178,2]
[347702993,1736074239137,-500.0,0.00019178,2]
[347702994,1736074239146,-632.95,0.00019178,2]
[347702995,1736074239155,-6849.16,0.00019178,2]
[347702996,1736074239165,-500.0,0.00019178,2]
[347702997,1736074239174,-273.70118236,0.00019178,2]
[347702998,1736074239184,-636.59,0.00019178,2]
[347702999,1736074239195,-160.667897,0.00019178,2]
[347703000,1736074239205,-302.96970909,0.0001919,2]
[347703001,1736074239215,-862.51,0.00019195,3]
[347703002,1736074239224,-500.0,0.00019196,3]
[347703003,1736074239233,-500.0,0.00019196,3]
[347703004,1736074239243,-500.0,0.00019196,3]
[347703005,1736074239252,-500.0,0.00019196,3]
[347703006,1736074239263,-344.28,0.000192,2]
[347703008,1736074239273,-150.0,0.00019209,2]
[347703009,1736074239282,-1333.588,0.00019209,2]
[347703010,1736074239291,-535.0,0.00019209,2]
[347703011,1736074239300,-500.0,0.00019273,2]
[347703012,1736074239309,-862.51,0.00019297,3]
[347703014,1736074239319,-791.79,0.00019298,3]
[347703015,1736074239328,-500.0,0.00019298,3]
[347703016,1736074239338,-500.0,0.00019298,3]
[347703017,1736074239347,-500.0,0.00019298,3]
[347703019,1736074239357,-763.11,0.00019298,3]
[347703021,1736074239366,-635.93,0.00019298,3]
[347703022,1736074239375,-765.17,0.00019298,3]
[347703023,1736074239384,-862.51,0.00019298,3]
[347703024,1736074239393,-4057.68,0.00019298,3]
[347703025,1736074239403,-3054.55,0.00019298,3]
[347703026,1736074239412,-500.0,0.00019298,3]
[347703027,1736074239421,-221.10203394,0.00019299,2]
[347703028,1736074239431,-862.51,0.00019299,3]
[347703029,1736074239440,-862.51,0.00019299,3]
[347703030,1736074239449,-862.51,0.00019299,3]
[347703031,1736074239458,-862.51,0.00019299,3]
[347703032,1736074239467,-862.51,0.00019299,3]
[347703033,1736074239477,-862.51,0.00019299,3]
[347703034,1736074239486,-862.51,0.00019299,3]
[347703035,1736074239496,-862.51,0.00019299,3]
[347703036,1736074239505,-862.51,0.00019299,3]
[347703037,1736074239514,-862.51,0.00019299,3]
[347703038,1736074239524,-862.51,0.00019299,3]
[347703039,1736074239534,-862.51,0.00019299,3]
[347703040,1736074239543,-862.51,0.00019299,3]
[347703041,1736074239555,-862.51,0.00019299,3]
[347703042,1736074239564,-862.51,0.00019299,3]
[347703043,1736074239574,-862.65082335,0.00019299,3]
[347703044,1736074239583,-1000.0,0.000193,35]
[347703045,1736074239593,-1002.28028146,0.000193,2]
[347703046,1736074239602,-26924.40365677,0.000193,2]
[347703047,1736074239616,-1510.8924315,0.000193,2]
[347703048,1736074239627,-3855.0,0.000193,2]
[347703049,1736074239638,-6580.53765506,0.000193,2]
[347703068,1736074240047,-377.85746356,0.000193,2]
[347703071,1736074240060,-41802.72663308,0.000193,2]
[347703073,1736074240073,-407713.15130197,0.000193,4]
[347703363,1736074242950,-970.76,0.00019178,2]
[347703365,1736074242960,-364.765,0.000193,4]
[347703368,1736074242982,-44322.19385387,0.000193,4]
[347703668,1736074245863,-851.97,0.00019178,2]
[347703670,1736074245873,-394.0,0.00019209,2]
[347703690,1736074245882,-8847.44,0.000193,4]
[347703692,1736074246061,-4357.09028374,0.000193,4]
[347703695,1736074246072,-5152.68809764,0.000193,4]
[347703697,1736074246084,-1994.21820083,0.000193,4]
[347703701,1736074246114,-17412.0278973,0.000193,4]
[347703703,1736074246125,-22414.49999998,0.000193,4]
[347705574,1736074541872,347.710585,0.00013973,2]
[347705595,1736075200470,639.32435261,0.00015,2]
[347705632,1736075432264,-500.0,0.00015341,2]
[347705634,1736075432274,-957.3114,0.00017971,2]
[347705636,1736075432284,-2339.97191443,0.00018007,2]
[347705638,1736075432294,-302.83924212,0.00018081,2]
[347705640,1736075432306,-197.16075788,0.00018081,2]
[347705642,1736075432315,-424.426,0.0001834,2]
[347705644,1736075432325,-191.43045937,0.000188,2]
[347705646,1736075432334,-180.65611382,0.000189,2]
[347705648,1736075432346,-828.07331807,0.000189,2]
[347705650,1736075432355,-341.0,0.00018932,2]
[347705652,1736075432365,-300.0,0.00018932,2]
[347705654,1736075432375,-10828.07398705,0.00018933,2]
[347705656,1736075432384,-153.693575,0.00019,2]
[347705658,1736075432394,-214.5892987,0.00019,2]
[347705660,1736075432403,-153.0,0.00019,2]
[347705662,1736075432412,-212.2873082,0.00019,2]
[347705664,1736075432422,-153.003416,0.00019,2]
[347705666,1736075432431,-214.1452579,0.00019,2]
[347705668,1736075432440,-153.0,0.00019,2]
[347705670,1736075432449,-153.0,0.00019,2]
[347705672,1736075432458,-153.6400067,0.00019,2]
[347705674,1736075432468,-214.515006,0.00019,2]
[347705676,1736075432478,-1008.72943175,0.00019038,2]
[347705678,1736075432487,-465.47049227,0.00019078,2]
[347705680,1736075432497,-211.59184996,0.00019078,2]
[347705682,1736075432506,-300.0,0.000191,8]
[347705684,1736075432515,-153.693575,0.000191,2]
[347705686,1736075432528,-214.5892987,0.000191,2]
[347705688,1736075432538,-153.0,0.000191,2]
[347705690,1736075432548,-153.0,0.000191,2]
[347705692,1736075432558,-183.3318414,0.00019106,2]
[347705694,1736075432567,-151.0,0.00019166,2]
[347705696,1736075432578,-894.47588507,0.00019176,2]
[347705698,1736075432591,-114.25354668,0.00019176,2]
[347705700,1736075432600,-500.0,0.00019177,5]
[347705723,1736075432791,-106.83573237,0.00019177,2]
[347705725,1736075432804,-392.16426763,0.00019177,2]
[347705726,1736075432813,-86.83573237,0.00019178,2]
[347706216,1736075437993,-413.16426763,0.00019178,2]
[347706218,1736075438004,-771.43,0.00019178,2]
[347706220,1736075438013,-500.0,0.00019178,2]
[347706222,1736075438024,-500.0,0.00019178,2]
[347706224,1736075438034,-500.0,0.00019178,2]
[347706226,1736075438044,-500.0,0.00019178,2]
[347706228,1736075438054,-500.0,0.00019178,2]
[347706230,1736075438064,-500.0,0.00019178,2]
[347706232,1736075438074,-594.40786217,0.00019178,2]
[347706234,1736075438085,-770.14,0.00019178,2]
[347706236,1736075438095,-770.14,0.00019178,2]
[347706237,1736075438105,-500.0,0.00019178,2]
[347706239,1736075438115,-500.0,0.00019178,2]
[347706241,1736075438125,-500.0,0.00019178,2]
[347706243,1736075438135,-764.37,0.00019178,2]
[347706245,1736075438144,-559.18,0.00019178,2]
[347706247,1736075438155,-500.0,0.00019178,2]
[347706248,1736075438164,-500.0,0.00019178,2]
[347706250,1736075438174,-500.0,0.00019178,2]
[347706252,1736075438183,-1261.63,0.00019178,2]
[347706254,1736075438193,-500.0,0.00019178,2]
[347706256,1736075438202,-500.0,0.00019178,2]
[347706258,1736075438212,-500.0,0.00019178,2]
[347706260,1736075438222,-500.0,0.00019178,2]
[347706262,1736075438232,-500.0,0.00019178,2]
[347706263,1736075438241,-500.0,0.00019178,2]
[347706265,1736075438250,-500.0,0.00019178,2]
[347706267,1736075438260,-643.38,0.00019178,2]
[347706269,1736075438270,-500.42788854,0.00019178,2]
[347706271,1736075438279,-620.09,0.00019178,2]
[347706273,1736075438289,-38.94159737,0.00019178,2]
[347706275,1736075438302,-461.05840263,0.00019178,2]
[347706277,1736075438312,-564.37,0.00019178,2]
[347706279,1736075438321,-10.70559737,0.00019178,2]
[347706281,1736075438334,-489.29440263,0.00019178,2]
[347706283,1736075438343,-508.36025508,0.00019178,2]
[347706285,1736075438353,-500.0,0.00019178,2]
[347706286,1736075438362,-907.48,0.00019178,2]
[347706288,1736075438372,-500.0,0.00019178,2]
[347706290,1736075438382,-500.0,0.00019178,2]
[347706292,1736075438391,-818.38,0.00019178,2]
[347706294,1736075438400,-525.75,0.00019178,2]
[347706296,1736075438410,-500.0,0.00019178,2]
[347706298,1736075438419,-991.73,0.00019178,2]
[347706300,1736075438430,-430.5635771,0.00019178,2]
[347706302,1736075438439,-500.0,0.00019178,2]
[347706304,1736075438450,-500.0,0.00019178,2]
[347706305,1736075438459,-500.0,0.00019178,2]
[347706307,1736075438469,-299.27042414,0.00019178,2]
[347706309,1736075438479,-547.75,0.00019178,2]
[347706311,1736075438489,-515.31,0.00019178,2]
[347706313,1736075438498,-500.0,0.00019178,2]
[347706315,1736075438507,-500.0,0.00019178,2]
[347706317,1736075438517,-500.0,0.00019178,2]
[347706319,1736075438526,-500.0,0.00019178,2]
[347706321,1736075438535,-563.22,0.00019178,2]
[347706323,1736075438545,-1372.4,0.00019178,2]
[347706324,1736075438554,-500.0,0.00019178,2]
[347706326,1736075438563,-500.0,0.00019178,2]
[347706328,1736075438572,-768.06,0.00019178,2]
[347706330,1736075438581,-409.23904987,0.00019178,2]
[347706332,1736075438591,-714.51,0.00019178,2]
[347706334,1736075438600,-500.0,0.00019178,2]
[347706336,1736075438609,-873.1,0.00019178,2]
[347706337,1736075438619,-816.48,0.00019178,2]
[347706339,1736075438629,-500.0,0.00019178,2]
[347706341,1736075438638,-930.31,0.00019178,2]
[347706343,1736075438648,-500.0,0.00019178,2]
[347706345,1736075438657,-525.89,0.00019178,2]
[347706347,1736075438667,-2845.77,0.00019178,2]
[347706349,1736075438676,-566.98,0.00019178,2]
[347706351,1736075438685,-500.0,0.00019178,2]
[347706353,1736075438695,-785.9,0.00019178,2]
[347706354,1736075438704,-500.0,0.00019178,2]
[347706356,1736075438713,-500.0,0.00019178,2]
[347706358,1736075438722,-1509.43,0.00019178,2]
[347706360,1736075438732,-2013.44,0.00019178,2]
[347706362,1736075438741,-193.9990245,0.00019178,2]
[347706364,1736075438750,-561.54,0.00019178,2]
[347706366,1736075438760,-10802.82,0.00019178,2]
[347706368,1736075438769,-1824.09,0.00019178,2]
[347706369,1736075438778,-35612.0,0.00019178,2]
[347706371,1736075438787,-1707.81,0.00019178,2]
[347706373,1736075438797,-654.38,0.00019178,2]
[347706375,1736075438807,-6592.33,0.00019178,2]
[347706377,1736075438819,-2480.69105113,0.00019178,2]
[347706504,1736075440202,-322.7,0.00019178,2]
[347706506,1736075440214,-634.56425145,0.00019178,2]
[347706510,1736075440238,-568.60749664,0.00019178,2]
[347706514,1736075440274,-329.18825729,0.00018792,2]
[347706518,1736075440310,-64.81174271,0.00018792,2]
[347706520,1736075440320,-503.52720078,0.00019178,2]
[347706522,1736075440330,-500.0,0.00019178,2]
[347706524,1736075440340,-1066.18,0.00019178,2]
[347706526,1736075440349,-500.0,0.00019178,2]
[347706528,1736075440358,-500.0,0.00019178,2]
[347706530,1736075440367,-500.0,0.00019178,2]
[347706531,1736075440376,-1833.92,0.00019178,2]
[347706533,1736075440386,-500.0,0.00019178,2]
[347706535,1736075440396,-500.0,0.00019178,2]
[347706537,1736075440406,-500.0,0.00019178,2]
[347706539,1736075440416,-733.28,0.00019178,2]
[347706541,1736075440425,-610.93507429,0.00019178,2]
[347706543,1736075440435,-500.0,0.00019178,2]
[347706545,1736075440445,-286.6386371,0.00019178,2]
[347706547,1736075440454,-525.2,0.00019178,2]
[347706549,1736075440464,-3916.48,0.00019178,2]
[347706551,1736075440473,-500.0,0.00019178,2]
[347706552,1736075440484,-1237.83,0.00019178,2]
[347706553,1736075440493,-3023.5,0.00019178,2]
[347706554,1736075440503,-500.0,0.00019178,2]
[347706555,1736075440513,-1213.2,0.00019178,2]
[347706556,1736075440523,-500.0,0.00019178,2]
[347706557,1736075440532,-500.0,0.00019178,2]
[347706558,1736075440542,-500.0,0.00019178,2]
[347706559,1736075440551,-610.07,0.00019178,2]
[347706560,1736075440561,-500.0,0.00019178,2]
[347706561,1736075440572,-500.0,0.00019178,2]
[347706562,1736075440591,-1355.96,0.00019178,2]
[347706563,1736075440611,-2122.05,0.00019178,2]
[347706564,1736075440620,-606.57,0.00019178,2]
[347706565,1736075440630,-1541.8,0.00019178,2]
[347706566,1736075440640,-528.21,0.00019178,2]
[347706567,1736075440649,-874.48,0.00019178,2]
[347706568,1736075440658,-500.0,0.00019178,2]
[347706569,1736075440668,-1622.68,0.00019178,2]
[347706570,1736075440678,-749.53,0.00019178,2]
[347706571,1736075440688,-500.0,0.00019178,2]
[347706572,1736075440697,-500.0,0.00019178,2]
[347706573,1736075440707,-160.667897,0.00019178,2]
[347706574,1736075440716,-309.85,0.000192,2]
[347706575,1736075440725,-150.0,0.0001921,2]
[347706576,1736075440735,-1714.176,0.0001921,2]
[347706577,1736075440744,-368.102,0.0001921,2]
[347706578,1736075440754,-502.27276603,0.00019273,2]
[347706579,1736075440763,-2927.28,0.00019298,3]
[347706580,1736075440772,-650.42,0.00019298,3]
[347706581,1736075440782,-500.0,0.00019298,3]
[347706582,1736075440791,-500.0,0.00019298,3]
[347706583,1736075440801,-1008.36,0.00019298,3]
[347706584,1736075440810,-215.24536147,0.00019298,3]
[347706585,1736075440819,-500.0,0.00019298,3]
[347706586,1736075440829,-500.0,0.00019298,3]
[347706587,1736075440838,-7526.86,0.00019298,3]
[347706588,1736075440849,-341118.42738038,0.000193,4]
[347706589,1736075440859,-151.0,0.000193,2]
[347706590,1736075440868,-151.0,0.000193,2]
[347706591,1736075440877,-151.0,0.000193,2]
[347706592,1736075440887,-151.0,0.000193,2]
[347706593,1736075440896,-5000.0,0.00019311,2]
[347706594,1736075440906,-1008.72943175,0.00019314,2]
[347706595,1736075440918,-151.0,0.00019323,5]
[347706596,1736075440927,-1200.0,0.00019356,2]
[347706597,1736075440937,-151.0,0.00019404,5]
[347706599,1736075440946,-1008.72943175,0.00019452,2]
[347706600,1736075440955,-158.496198,0.00019452,2]
[347706601,1736075440966,-194.4626,0.00019452,2]
[347706603,1736075440975,-151.0,0.00019452,2]
[347706604,1736075440985,-500.0,0.00019452,3]
[347706606,1736075440995,-771.43,0.00019452,3]
[347706607,1736075441004,-500.0,0.00019452,3]
[347706609,1736075441013,-151.0,0.00019452,2]
[347706611,1736075441022,-500.0,0.00019452,3]
[347706613,1736075441032,-500.0,0.00019452,3]
[347706615,1736075441041,-500.0,0.00019452,3]
[347706617,1736075441051,-533.58934824,0.00019452,3]
[347706619,1736075441060,-151.0,0.00019452,2]
[347706621,1736075441069,-500.0,0.00019452,3]
[347706623,1736075441079,-151.0,0.00019452,2]
[347706625,1736075441089,-151.0,0.00019452,2]
[347706627,1736075441097,-151.0,0.00019452,2]
[347706629,1736075441106,-500.0,0.00019452,3]
[347706631,1736075441116,-151.0,0.00019452,2]
[347706633,1736075441126,-764.37,0.00019452,3]
[347706635,1736075441135,-559.18,0.00019452,3]
[347706637,1736075441145,-500.0,0.00019452,3]
[347706639,1736075441154,-500.0,0.00019452,3]
[347706641,1736075441164,-500.0,0.00019452,3]
[347706643,1736075441174,-151.0,0.00019452,2]
[347706645,1736075441184,-151.0,0.00019452,2]
[347706647,1736075441193,-1261.63,0.00019452,3]
[347706649,1736075441203,-500.0,0.00019452,3]
[347706651,1736075441212,-500.0,0.00019452,3]
[347706653,1736075441222,-500.0,0.00019452,3]
[347706655,1736075441232,-500.0,0.00019452,3]
[347706657,1736075441241,-500.0,0.00019452,3]
[347706659,1736075441251,-643.38,0.00019452,3]
[347706661,1736075441261,-620.09,0.00019452,3]